fUST/lending_fUST_20250717
["ID","MTS","AMOUNT","RATE_DAILY","PERIOD"]
[372777989,1752758281542,-10000.0,0.00016739,2]
[372777990,1752758281749,-10000.0,0.00016739,2]
[372777991,1752758282016,-10000.0,0.00016739,2]
[372777992,1752758282187,-10000.0,0.00016739,2]
[372777993,1752758282365,-10000.0,0.00016739,2]
[372777994,1752758282608,-300.0,0.00016738,2]
[372777995,1752758282660,-9400.0,0.00016739,2]
[372777996,1752758282822,-10000.0,0.00016739,2]
[372777997,1752758283045,-10000.0,0.00016739,2]
[372777998,1752758283214,-2334.12462468,0.00016739,2]
[372777999,1752758287392,150.0,0.00015704,2]
[372778000,1752758287836,150.0,0.00016452,2]
[372778003,1752758352254,5031.75075064,0.00016639,2]
[372778004,1752758352281,10000.0,0.00016639,2]
[372778005,1752758352308,10000.0,0.00016639,2]
[372778006,1752758352333,10000.0,0.00016639,2]
[372778007,1752758352360,10000.0,0.00016639,2]
[372778008,1752758352386,10000.0,0.00016639,2]
[372778009,1752758352411,10000.0,0.00016639,2]
[372778010,1752758352438,10000.0,0.00016639,2]
[372778011,1752758352468,10000.0,0.00016639,2]
[372778012,1752758352495,10000.0,0.00016639,2]
[372778013,1752758352522,10000.0,0.00016639,2]
[372778014,1752758352547,10000.0,0.00016639,2]
[372778015,1752758352573,10000.0,0.00016639,2]
[372778016,1752758352598,10000.0,0.00016639,2]
[372778017,1752758352625,10000.0,0.00016639,2]
[372778018,1752758352649,10000.0,0.00016639,2]
[372778019,1752758352676,10000.0,0.00016639,2]
[372778020,1752758352701,10000.0,0.00016639,2]
[372778021,1752758352725,10000.0,0.00016639,2]
[372778022,1752758352750,10000.0,0.00016639,2]
[372778023,1752758352778,10000.0,0.00016639,2]
[372778024,1752758352803,10000.0,0.00016639,2]
[372778025,1752758417439,150.0,0.00015636,2]
[372778026,1752758471108,-601.96,0.00016629,3]
[372778027,1752758471141,-391.56,0.00016629,3]
[372778028,1752758471172,-195.78,0.00016629,3]
[372778029,1752758471205,-587.38,0.00016629,3]
[372778030,1752758471240,-300.0,0.00016637,2]
[372778031,1752758471290,-928.3503314,0.00016638,2]
[372778032,1752758471325,-571.06781488,0.00016638,2]
[372778033,1752758471360,-928.3503314,0.00016638,2]
[372778034,1752758471396,-62.75271324,0.00016638,2]
[372778035,1752758471516,-865.59761816,0.00016638,2]
[372778036,1752758471551,-928.3503314,0.00016638,2]
[372778037,1752758471586,-928.3503314,0.00016638,2]
[372778038,1752758471621,-928.3503314,0.00016638,2]
[372778039,1752758471655,-928.3503314,0.00016638,2]
[372778040,1752758474095,-928.3503314,0.00016638,2]
[372778041,1752758474131,-928.3503314,0.00016638,2]
[372778042,1752758474167,-928.3503314,0.00016638,2]
[372778043,1752758474201,-928.3503314,0.00016638,2]
[372778044,1752758474239,-928.3503314,0.00016638,2]
[372778045,1752758474400,-928.3503314,0.00016638,2]
[372778046,1752758474435,-928.3503314,0.00016638,2]
[372778047,1752758474473,-928.3503314,0.00016638,2]
[372778048,1752758474503,-500.0,0.00016638,2]
[372778049,1752758474536,-500.0,0.00016638,2]
[372778050,1752758474568,-500.0,0.00016638,2]
[372778051,1752758474601,-500.0,0.00016638,2]
[372778052,1752758474803,-500.0,0.00016638,2]
[372778053,1752758474834,-500.0,0.00016638,2]
[372778054,1752758474867,-500.0,0.00016638,2]
[372778055,1752758474906,-500.0,0.00016638,2]
[372778056,1752758474945,-500.0,0.00016638,2]
[372778057,1752758474978,-500.0,0.00016638,2]
[372778058,1752758475013,-500.0,0.00016638,2]
[372778059,1752758475044,-300.10788551,0.00016638,2]
[372778060,1752758475078,-500.0,0.00016638,2]
[372778061,1752758475111,-500.0,0.00016638,2]
[372778062,1752758475144,-192.15790745,0.00016638,2]
[372778063,1752758475390,-15.46841408,0.00016638,2]
[372778064,1752758475423,-500.0,0.00016638,2]
[372778065,1752758475455,-500.0,0.00016638,2]
[372778066,1752758475490,-500.0,0.00016638,2]
[372778067,1752758475523,-500.0,0.00016638,2]
[372778068,1752758475556,-500.0,0.00016638,2]
[372778069,1752758475589,-500.0,0.00016638,2]
[372778070,1752758475622,-500.0,0.00016638,2]
[372778071,1752758475655,-500.0,0.00016638,2]
[372778072,1752758475685,-500.0,0.00016638,2]
[372778073,1752758475716,-235.46114706,0.00016638,2]
[372778074,1752758475814,-500.0,0.00016638,2]
[372778075,1752758475846,-500.0,0.00016638,2]
[372778076,1752758475880,-500.0,0.00016638,2]
[372778077,1752758475912,-500.0,0.00016638,2]
[372778078,1752758475944,-500.0,0.00016638,2]
[372778079,1752758475979,-429.33119692,0.00016638,2]
[372778080,1752758476012,-500.0,0.00016638,2]
[372778081,1752758476046,-500.0,0.00016638,2]
[372778082,1752758476079,-500.0,0.00016638,2]
[372778083,1752758476112,-500.0,0.00016638,2]
[372778084,1752758476485,-500.0,0.00016638,2]
[372778085,1752758476519,-500.0,0.00016638,2]
[372778086,1752758476553,-500.0,0.00016638,2]
[372778087,1752758476587,-500.0,0.00016638,2]
[372778088,1752758476620,-500.0,0.00016638,2]
[372778089,1752758476654,-500.0,0.00016638,2]
[372778090,1752758476687,-500.0,0.00016638,2]
[372778091,1752758476720,-500.0,0.00016638,2]
[372778092,1752758476754,-500.0,0.00016638,2]
[372778093,1752758476788,-500.0,0.00016638,2]
[372778094,1752758476971,-500.0,0.00016638,2]
[372778095,1752758477005,-500.0,0.00016638,2]
[372778096,1752758477037,-500.0,0.00016638,2]
[372778097,1752758477072,-500.0,0.00016638,2]
[372778098,1752758477105,-500.0,0.00016638,2]
[372778099,1752758477140,-500.0,0.00016638,2]
[372778100,1752758477173,-500.0,0.00016638,2]
[372778101,1752758477205,-500.0,0.00016638,2]
[372778102,1752758477240,-500.0,0.00016638,2]
[372778103,1752758477273,-500.0,0.00016638,2]
[372778104,1752758477632,-500.0,0.00016638,2]
[372778105,1752758477664,-500.0,0.00016638,2]
[372778106,1752758477695,-500.0,0.00016638,2]
[372778107,1752758477729,-500.0,0.00016638,2]
[372778108,1752758477761,-500.0,0.00016638,2]
[372778109,1752758477794,-500.0,0.00016638,2]
[372778110,1752758477827,-500.0,0.00016638,2]
[372778111,1752758477860,-500.0,0.00016638,2]
[372778112,1752758477895,-500.0,0.00016638,2]
[372778113,1752758477931,-500.0,0.00016638,2]
[372778114,1752758478149,-500.0,0.00016638,2]
[372778115,1752758478183,-500.0,0.00016638,2]
[372778116,1752758478218,-500.0,0.00016638,2]
[372778117,1752758478254,-500.0,0.00016638,2]
[372778118,1752758478288,-500.0,0.00016638,2]
[372778119,1752758478322,-500.0,0.00016638,2]
[372778120,1752758478355,-500.0,0.00016638,2]
[372778121,1752758478387,-500.0,0.00016638,2]
[372778122,1752758478419,-500.0,0.00016638,2]
[372778123,1752758478451,-500.0,0.00016638,2]
[372778124,1752758478559,-500.0,0.00016638,2]
[372778125,1752758478591,-500.0,0.00016638,2]
[372778126,1752758478623,-500.0,0.00016638,2]
[372778127,1752758478655,-500.0,0.00016638,2]
[372778128,1752758478689,-500.0,0.00016638,2]
[372778129,1752758478843,-500.0,0.00016638,2]
[372778130,1752758478877,-224.47396157,0.00016638,2]
[372778131,1752758478911,-500.0,0.00016638,2]
[372778132,1752758478943,-500.0,0.00016638,2]
[372778133,1752758478976,-500.0,0.00016638,2]
[372778134,1752758479010,-51.05207686,0.00016638,2]
[372778135,1752758479825,-448.94792314,0.00016638,2]
[372778136,1752758479861,-500.0,0.00016638,2]
[372778137,1752758479898,-500.0,0.00016638,2]
[372778138,1752758479932,-276.5333645,0.00016638,2]
[372778139,1752758479966,-500.0,0.00016638,2]
[372778140,1752758480001,-500.0,0.00016638,2]
[372778141,1752758480035,-500.0,0.00016638,2]
[372778142,1752758480067,-500.0,0.00016638,2]
[372778143,1752758480099,-500.0,0.00016638,2]
[372778144,1752758480132,-500.0,0.00016638,2]
[372778145,1752758480165,-49.03742472,0.00016638,2]
[372778146,1752758480340,-450.96257528,0.00016638,2]
[372778147,1752758480372,-500.0,0.00016638,2]
[372778148,1752758480404,-500.0,0.00016638,2]
[372778149,1752758480436,-500.0,0.00016638,2]
[372778150,1752758480470,-500.0,0.00016638,2]
[372778151,1752758480505,-500.0,0.00016638,2]
[372778152,1752758480537,-500.0,0.00016638,2]
[372778153,1752758480573,-500.0,0.00016638,2]
[372778154,1752758480607,-500.0,0.00016638,2]
[372778155,1752758480639,-500.0,0.00016638,2]
[372778156,1752758481084,-500.0,0.00016638,2]
[372778157,1752758481117,-500.0,0.00016638,2]
[372778158,1752758481150,-500.0,0.00016638,2]
[372778159,1752758481183,-500.0,0.00016638,2]
[372778160,1752758481218,-500.0,0.00016638,2]
[372778161,1752758481254,-500.0,0.00016638,2]
[372778162,1752758481288,-974.76784797,0.00016638,2]
[372778163,1752758481321,-974.76784797,0.00016638,2]
[372778164,1752758481390,-974.76784797,0.00016638,2]
[372778165,1752758481424,-974.76784797,0.00016638,2]
[372778166,1752758481457,-974.76784797,0.00016638,2]
[372778167,1752758481489,-974.76784797,0.00016638,2]
[372778168,1752758481523,-974.76784797,0.00016638,2]
[372778169,1752758481578,-974.76784797,0.00016638,2]
[372778170,1752758481610,-974.76784797,0.00016638,2]
[372778171,1752758481642,-500.0,0.00016638,2]
[372778172,1752758481673,-500.0,0.00016638,2]
[372778173,1752758481704,-500.0,0.00016638,2]
[372778174,1752758481737,-500.0,0.00016638,2]
[372778175,1752758481769,-500.0,0.00016638,2]
[372778176,1752758481801,-500.0,0.00016638,2]
[372778177,1752758481971,-500.0,0.00016638,2]
[372778178,1752758482005,-500.0,0.00016638,2]
[372778179,1752758482040,-500.0,0.00016638,2]
[372778180,1752758482073,-500.0,0.00016638,2]
[372778181,1752758482104,-500.0,0.00016638,2]
[372778182,1752758482137,-500.0,0.00016638,2]
[372778183,1752758482173,-500.0,0.00016638,2]
[372778184,1752758482206,-500.0,0.00016638,2]
[372778185,1752758482240,-500.0,0.00016638,2]
[372778186,1752758482272,-500.0,0.00016638,2]
[372778187,1752758482477,-500.0,0.00016638,2]
[372778188,1752758482508,-500.0,0.00016638,2]
[372778189,1752758482539,-500.0,0.00016638,2]
[372778190,1752758482574,-500.0,0.00016638,2]
[372778191,1752758482606,-500.0,0.00016638,2]
[372778192,1752758482637,-500.0,0.00016638,2]
[372778193,1752758482668,-500.0,0.00016638,2]
[372778194,1752758482699,-500.0,0.00016638,2]
[372778195,1752758482731,-500.0,0.00016638,2]
[372778196,1752758482762,-500.0,0.00016638,2]
[372778197,1752758482890,-500.0,0.00016638,2]
[372778198,1752758482926,-1257.45052388,0.00016638,2]
[372778199,1752758482960,-1257.45052388,0.00016638,2]
[372778200,1752758482992,-300.0,0.00016638,2]
[372778201,1752758483022,-300.0,0.00016638,2]
[372778202,1752758483051,-300.0,0.00016638,2]
[372778203,1752758483082,-970.19790448,0.00016638,2]
[372778204,1752758483414,-1200.0,0.00016637,2]
[372778205,1752758483449,-229.80209552,0.00016638,2]
[372778206,1752758484431,150.0,0.00015549,2]
[372778207,1752758484844,-150.0,0.0001629,2]
[372778208,1752758486068,-6957.34262984,0.00016639,2]
[372778209,1752758486096,-10000.0,0.00016639,2]
[372778210,1752758486460,-10000.0,0.00016639,2]
[372778211,1752758486663,-10000.0,0.00016639,2]
[372778212,1752758486936,-10000.0,0.00016639,2]
[372778213,1752758487287,-10000.0,0.00016639,2]
[372778214,1752758487512,-10000.0,0.00016639,2]
[372778215,1752758487883,-10000.0,0.00016639,2]
[372778216,1752758488173,-10000.0,0.00016639,2]
[372778217,1752758488382,-10000.0,0.00016639,2]
[372778218,1752758488518,-10000.0,0.00016639,2]
[372778219,1752758488765,-10000.0,0.00016639,2]
[372778220,1752758488974,-10000.0,0.00016639,2]
[372778221,1752758489158,-10000.0,0.00016639,2]
[372778222,1752758489443,-10000.0,0.00016639,2]
[372778223,1752758489604,-1989.09338048,0.00016639,2]
[372778224,1752758489630,-6021.81323904,0.00016639,2]
[372778225,1752758489875,-407.73132772,0.00016639,2]
[372778226,1752758496165,460.0,0.00016638,2]
[372778227,1752758496698,460.0,0.00016638,2]
[372778228,1752758497536,155.0,0.00016639,2]
[372778229,1752758516797,8109.53734456,0.00016639,2]
[372778230,1752758516824,10000.0,0.00016639,2]
[372778231,1752758516850,10000.0,0.00016639,2]
[372778232,1752758516877,10000.0,0.00016639,2]
[372778233,1752758516905,10000.0,0.00016639,2]
[372778234,1752758516934,10000.0,0.00016639,2]
[372778235,1752758516961,10000.0,0.00016639,2]
[372778236,1752758516990,10000.0,0.00016639,2]
[372778237,1752758517017,10000.0,0.00016639,2]
[372778238,1752758517044,10000.0,0.00016639,2]
[372778239,1752758517070,10000.0,0.00016639,2]
[372778240,1752758517099,10000.0,0.00016639,2]
[372778241,1752758517125,10000.0,0.00016639,2]
[372778242,1752758517151,10000.0,0.00016639,2]
[372778243,1752758517179,10000.0,0.00016639,2]
[372778244,1752758517205,10000.0,0.00016639,2]
[372778245,1752758517232,10000.0,0.00016639,2]
[372778246,1752758517259,10000.0,0.00016639,2]
[372778247,1752758517290,10000.0,0.00016639,2]
[372778248,1752758517317,10000.0,0.00016639,2]
[372778249,1752758517343,10000.0,0.00016639,2]
[372778250,1752758517369,10000.0,0.00016639,2]
[372778251,1752758517396,10000.0,0.00016639,2]
[372778252,1752758517421,10000.0,0.00016639,2]
[372778253,1752758517447,10000.0,0.00016639,2]
[372778254,1752758517477,10000.0,0.00016639,2]
[372778255,1752758517503,10000.0,0.00016639,2]
[372778256,1752758517529,10000.0,0.00016639,2]
[372778257,1752758517554,10000.0,0.00016639,2]
[372778258,1752758527535,-181.09835283,0.00015922,2]
[372778259,1752758534665,-159.37655395,0.00015922,2]
[372778261,1752758542811,-236.81596695,0.00015922,2]
[372778262,1752758544810,2464.793252,0.00015651,2]
[372778263,1752758550124,-230.27942528,0.00015922,2]
[372778264,1752758551755,150.0,0.00015669,2]
[372778265,1752758552882,-163.63499744,0.00015922,2]
[372778266,1752758557670,-61.18450685,0.00015922,2]
[372778267,1752758607026,667.973089,0.0001577,2]
[372778268,1752758609131,-276.78345802,0.00015923,2]
[372778269,1752758615455,-110.91636898,0.00015923,2]
[372778270,1752758615479,-54.08363102,0.00016042,2]
[372778271,1752758620954,-349.63675084,0.00016042,2]
[372778272,1752758624878,-363.8602612,0.0001599,2]
[372778273,1752758624900,-74.81946103,0.00016042,2]
[372778274,1752758626437,-461.91722611,0.00016042,2]
[372778275,1752758626459,-857.92836198,0.0001609,2]
[372778276,1752758626480,-428.96418099,0.00016138,2]
[372778277,1752758626502,-363.86026119,0.00016177,2]
[372778278,1752758626523,-258.43695648,0.00016258,2]
[372778279,1752758626547,-363.86026119,0.00016364,2]
[372778280,1752758628527,163.66,0.00015816,2]
[372778281,1752758647888,2293.8897731,0.00015713,2]
[372778285,1752758713694,161.58,0.00015946,2]
[372778299,1752758799013,159.52,0.00015884,2]
[372778308,1752758852016,341.27944416,0.00016437,2]
[372778309,1752758853919,184.2245814,0.00015763,2]
[372778312,1752758882711,6695.84620134,0.00015638,2]
[372778313,1752758882737,10000.0,0.00015638,2]
[372778314,1752758882763,10000.0,0.00015638,2]
[372778315,1752758882789,10000.0,0.00015638,2]
[372778316,1752758882814,10000.0,0.00015638,2]
[372778317,1752758882841,4967.30678656,0.00015638,2]
[372778318,1752758884660,157.49,0.00015941,2]
[372778319,1752758893151,414.56140898,0.00010618,2]
[372778320,1752758894942,4460.64180446,0.000125,2]
[372778321,1752758894967,6906.07307059,0.000125,2]
[372778323,1752758906477,277.45352444,0.00014114,2]
[372778324,1752758908513,282.29045522,0.0001,2]
[372778325,1752758911597,542.78434329,0.00016138,2]
[372778326,1752758912146,271.39217165,0.00016138,2]
[372778327,1752758918304,579.94779219,0.000149,2]
[372778328,1752758918486,1000.0,0.0001,2]
[372778332,1752758922071,140.05864262,0.00015,2]
[372778333,1752758922097,10000.0,0.00015,2]
[372778334,1752758922126,5859.94135738,0.00015,2]
[372778335,1752758922826,210.47084292,0.00016,2]
[372778336,1752758926808,159.47801445,0.00016436,2]
[372778337,1752758971706,155.49,0.00015415,2]
[372778338,1752758972124,310.98,0.00016149,2]
[372778339,1752758985758,1605.36966149,0.00016437,2]
[372778341,1752758986617,1605.36966149,0.00016437,2]
[372778342,1752758995042,92.90046227,0.000165,2]
[372778343,1752758995067,4121.29563049,0.000165,2]
[372778344,1752758995635,1256.48907978,0.000165,2]
[372778345,1752758997009,837.65938652,0.000165,2]
[372778346,1752758997911,558.43959102,0.000165,2]
[372778347,1752758998796,372.29306068,0.000165,2]
[372778348,1752758999666,248.19537378,0.000165,2]
[372778349,1752759000641,165.46358252,0.000165,2]
[372778350,1752759002244,151.0,0.000165,2]
[372778351,1752759003528,179.92716505,0.000165,2]
[372778352,1752759028311,2109.23713016,0.00015637,2]
[372778353,1752759028338,1758.34644754,0.00015637,2]
[372778378,1752759032568,-202.24683189,0.00016529,2]
[372778380,1752759032578,-300.0,0.00016635,2]
[372778382,1752759032588,-300.0,0.00016635,2]
[372778384,1752759032598,-214.0,0.00016635,2]
[372778386,1752759032607,-1200.0,0.00016635,2]
[372778388,1752759032617,-500.0,0.00016636,2]
[372778390,1752759032627,-500.0,0.00016636,2]
[372778392,1752759032636,-500.0,0.00016636,2]
[372778394,1752759032645,-348.25257302,0.00016636,2]
[372778396,1752759032655,-500.0,0.00016636,2]
[372778398,1752759032664,-500.0,0.00016636,2]
[372778400,1752759032674,-146.12297251,0.00016636,2]
[372778407,1752759032699,-353.87702749,0.00016636,2]
[372778411,1752759032709,-500.0,0.00016636,2]
[372778414,1752759032718,-500.0,0.00016636,2]
[372778416,1752759032728,-695.9185757,0.00016636,2]
[372778418,1752759032738,-399.74747042,0.00016636,2]
[372778420,1752759032747,-695.9185757,0.00016636,2]
[372778422,1752759032757,-695.9185757,0.00016636,2]
[372778424,1752759032766,-695.9185757,0.00016636,2]
[372778426,1752759032775,-695.9185757,0.00016636,2]
[372778428,1752759032785,-695.9185757,0.00016636,2]
[372778430,1752759032794,-695.9185757,0.00016636,2]
[372778432,1752759032803,-695.9185757,0.00016636,2]
[372778434,1752759032813,-695.9185757,0.00016636,2]
[372778436,1752759032822,-738.7443342,0.00016636,2]
[372778438,1752759032832,-738.7443342,0.00016636,2]
[372778440,1752759032841,-738.7443342,0.00016636,2]
[372778442,1752759032850,-738.7443342,0.00016636,2]
[372778444,1752759032860,-738.7443342,0.00016636,2]
[372778446,1752759032869,-738.7443342,0.00016636,2]
[372778448,1752759032879,-738.7443342,0.00016636,2]
[372778450,1752759032889,-738.7443342,0.00016636,2]
[372778452,1752759032898,-738.7443342,0.00016636,2]
[372778454,1752759032908,-738.7443342,0.00016636,2]
[372778456,1752759032918,-764.86155813,0.00016636,2]
[372778458,1752759032927,-764.86155813,0.00016636,2]
[372778460,1752759032937,-764.86155813,0.00016636,2]
[372778462,1752759032948,-460.0,0.00016636,2]
[372778464,1752759032957,-460.0,0.00016636,2]
[372778466,1752759032966,-460.0,0.00016636,2]
[372778468,1752759032976,-460.0,0.00016636,2]
[372778470,1752759032985,-190.40801784,0.00016636,2]
[372778472,1752759032994,-460.0,0.00016636,2]
[372778474,1752759033004,-434.0557907,0.00016636,2]
[372778477,1752759033013,-460.0,0.00016636,2]
[372778479,1752759033023,-1549.91795233,0.00016637,2]
[372778990,1752759038726,-460.0,0.00016636,2]
[372778992,1752759038736,-48450.08204767,0.00016637,2]
[372778994,1752759038746,-1200.0,0.00016637,2]
[372778996,1752759038755,-462.0843262,0.00016637,2]
[372778998,1752759038765,-460.0,0.00016637,2]
[372779000,1752759038774,-460.0,0.00016637,2]
[372779002,1752759038783,-463.93212431,0.00016637,2]
[372779004,1752759038793,-460.0,0.00016637,2]
[372779006,1752759038802,-460.0,0.00016637,2]
[372779008,1752759038812,-460.0,0.00016637,2]
[372779010,1752759038821,-460.0,0.00016637,2]
[372779012,1752759038830,-460.0,0.00016637,2]
[372779014,1752759038839,-460.0,0.00016637,2]
[372779016,1752759038849,-460.0,0.00016637,2]
[372779018,1752759038858,-460.0,0.00016637,2]
[372779020,1752759038867,-460.0,0.00016637,2]
[372779022,1752759038877,-460.0,0.00016637,2]
[372779024,1752759038886,-460.0,0.00016637,2]
[372779026,1752759038897,-2027.67,0.00016637,2]
[372779028,1752759038906,-460.0,0.00016637,2]
[372779030,1752759038915,-460.0,0.00016638,2]
[372779032,1752759038925,-460.0,0.00016638,2]
[372779050,1752759039088,-460.0,0.00016638,2]
[372779052,1752759039098,-460.0,0.00016638,2]
[372779054,1752759039108,-460.0,0.00016638,2]
[372779057,1752759039118,-460.0,0.00016638,2]
[372779058,1752759039128,-460.0,0.00016638,2]
[372779061,1752759039138,-460.0,0.00016638,2]
[372779063,1752759039147,-460.0,0.00016638,2]
[372779065,1752759039156,-460.0,0.00016638,2]
[372779066,1752759039166,-460.0,0.00016638,2]
[372779068,1752759039175,-460.0,0.00016638,2]
[372779070,1752759039184,-460.0,0.00016638,2]
[372779073,1752759039194,-460.0,0.00016638,2]
[372779075,1752759039205,-4470.12,0.00016638,2]
[372779077,1752759039215,-460.0,0.00016638,2]
[372779078,1752759039224,-460.0,0.00016638,2]
[372779080,1752759039234,-3353.99,0.00016638,2]
[372779082,1752759039244,-460.0,0.00016638,2]
[372779084,1752759039255,-739.67,0.00016638,2]
[372779087,1752759039267,-460.0,0.00016638,2]
[372779089,1752759039276,-2621.83,0.00016638,2]
[372779091,1752759039286,-460.0,0.00016638,2]
[372779092,1752759039296,-460.0,0.00016638,2]
[372779095,1752759039306,-2600.9,0.00016638,2]
[372779096,1752759039316,-460.0,0.00016638,2]
[372779098,1752759039326,-460.0,0.00016638,2]
[372779100,1752759039335,-1436.69,0.00016638,2]
[372779102,1752759039345,-620.94,0.00016638,2]
[372779104,1752759039359,-460.0,0.00016638,2]
[372779106,1752759039368,-460.74179526,0.00016638,2]
[372779108,1752759039378,-460.0,0.00016638,2]
[372779110,1752759039387,-460.0,0.00016638,2]
[372779112,1752759039397,-712.0,0.00016638,2]
[372779114,1752759039407,-1497.38,0.00016638,2]
[372779116,1752759039416,-500.0,0.00016638,2]
[372779118,1752759039429,-500.0,0.00016638,2]
[372779120,1752759039440,-502.1558036,0.00016638,2]
[372779123,1752759039450,-500.0,0.00016638,2]
[372779124,1752759039462,-81890.46265544,0.00016639,2]
[372779127,1752759039471,-1984.24,0.00016828,3]
[372779129,1752759039481,-992.12,0.00016828,3]
[372779131,1752759039492,-496.06,0.00016828,3]
[372779132,1752759039501,-744.11,0.00016828,3]
[372779134,1752759039511,-15403.04975095,0.00016833,2]
[372779136,1752759039521,-460.0,0.00016838,2]
[372779138,1752759039531,-460.0,0.00016838,2]
[372779140,1752759039541,-460.0,0.00016838,2]
[372779143,1752759039551,-460.0,0.00016838,2]
[372779144,1752759039560,-460.0,0.00016838,2]
[372779146,1752759039570,-460.0,0.00016838,2]
[372779149,1752759039581,-460.0,0.00016838,2]
[372779150,1752759039590,-460.0,0.00016838,2]
[372779152,1752759039599,-460.0,0.00016838,2]
[372779154,1752759039610,-460.0,0.00016838,2]
[372779156,1752759039620,-313.66168672,0.00016838,2]
[372779158,1752759039630,-460.0,0.00016838,2]
[372779160,1752759039638,-302.43348805,0.00016838,2]
[372779162,1752759039648,-460.0,0.00016838,2]
[372779164,1752759039657,-460.0,0.00016838,2]
[372779166,1752759039666,-460.0,0.00016838,2]
[372779168,1752759039676,-460.0,0.00016838,2]
[372779170,1752759039686,-460.0,0.00016838,2]
[372779172,1752759039695,-460.0,0.00016838,2]
[372779174,1752759039706,-460.0,0.00016838,2]
[372779176,1752759039715,-381.90173859,0.00016838,2]
[372779178,1752759039724,-460.0,0.00016838,2]
[372779180,1752759039734,-460.0,0.00016838,2]
[372779182,1752759039743,-460.0,0.00016838,2]
[372779183,1752759039753,-460.0,0.00016838,2]
[372779185,1752759039762,-460.0,0.00016838,2]
[372779187,1752759039772,-460.0,0.00016838,2]
[372779189,1752759039781,-460.60542973,0.00016838,2]
[372779191,1752759039790,-461.03300203,0.00016838,2]
[372779193,1752759039801,-460.0,0.00016838,2]
[372779195,1752759039810,-460.4756429,0.00016838,2]
[372779197,1752759039820,-175.1257883,0.00016838,2]
[372779199,1752759039830,-460.75400842,0.00016838,2]
[372779201,1752759039839,-460.0,0.00016838,2]
[372779203,1752759039848,-460.0,0.00016838,2]
[372779205,1752759039858,-460.0,0.00016838,2]
[372779207,1752759039867,-460.0,0.00016838,2]
[372779209,1752759039877,-460.0,0.00016838,2]
[372779211,1752759039887,-460.0,0.00016838,2]
[372779213,1752759039897,-460.0,0.00016838,2]
[372779215,1752759039907,-460.0,0.00016838,2]
[372779217,1752759039917,-460.0,0.00016838,2]
[372779219,1752759039926,-460.0,0.00016838,2]
[372779221,1752759039937,-460.0,0.00016838,2]
[372779223,1752759039946,-460.0,0.00016838,2]
[372779225,1752759039957,-460.0,0.00016838,2]
[372779227,1752759039966,-460.0,0.00016838,2]
[372779229,1752759039976,-256.68936265,0.00016838,2]
[372779231,1752759039985,-254.40962379,0.00016838,2]
[372779233,1752759039995,-460.0,0.00016838,2]
[372779235,1752759040005,-179.57518982,0.00016838,2]
[372779237,1752759040014,-460.0,0.00016838,2]
[372779239,1752759040024,-460.0,0.00016838,2]
[372779241,1752759040033,-460.0,0.00016838,2]
[372779243,1752759040042,-460.0,0.00016838,2]
[372779245,1752759040052,-460.0,0.00016838,2]
[372779247,1752759040062,-460.0,0.00016838,2]